Cogmind - Beta 17 @@@ ROGUE MODE // 2026.06.27 @ 23:22:40 Player: Ammie Result: Destroyed by G-34 Mercenary with Small Laser Performance ------------- Evolutions (0) 0 Regions Visited (1) 200 Robots Destroyed (25) 125 Value Destroyed (659) 659 Prototype IDs (0) 0 Alien Tech Used (0) 0 Bonus (0) 0 TOTAL SCORE: 984 Bonus ------- None Cogmind --------- Core Integrity 0/250 Matter 273/300 Energy 224/250 System Corruption 0% Temperature Hot (205) Movement Treading (240) Ox1 Location -10/Materials Parts ------- > --- POWER (1) -------- Ion Engine > --- PROPULSION (2) --- Light Treads Light Treads > --- UTILITY (2) ------ High-capacity Storage Unit Hacking Suite > --- WEAPON (2) ------- Beam Rifle Beam Rifle > --- INVENTORY (20) --- Light Ion Engine Light Treads Improved Hover Unit Improved Hover Unit Improved Hover Unit Improved Hover Unit Heat Sink Heat Sink Weight Redist. System Weight Redist. System Structural Scanner Beam Rifle Beam Rifle Particle Cannon Peak State ------------ > --- POWER ------------ Ion Engine > --- PROPULSION ------- Light Treads Light Treads > --- UTILITY ---------- Large Storage Unit Hacking Suite > --- WEAPON ----------- Particle Cannon Particle Cannon > --- INVENTORY -------- Light Ion Engine Light Treads Improved Hover Unit Improved Hover Unit Improved Hover Unit Improved Hover Unit Heat Sink Heat Sink Weight Redist. System Weight Redist. System Structural Scanner Beam Rifle Beam Rifle [Rating: 13] Favorites ----------- Power Ion Engine Engine Ion Engine Propulsion Light Treads Treads Light Treads Utility Hacking Suite Storage Large Storage Unit Hackware Hacking Suite Weapon Particle Cannon Energy Gun Small Laser Energy Cannon Particle Cannon Build | -11 -10 ------- Run | Yrd Mat Slots Evolved . | . . Power . | . . Propulsion . | . . Utility . | . . Weapon . | . . Parts Attached 20 | 6 14 Power 3 | 1 2 Engine 3 | 1 2 Core . | . . Reactor . | . . Propulsion 4 | 2 2 Treads 4 | 2 2 Leg . | . . Wheel . | . . Hover . | . . Flight . | . . Utility 4 | 1 3 Device . | . . Storage 3 | 1 2 Processor . | . . Hackware 1 | . 1 Protection . | . . Artifact . | . . Weapon 9 | 2 7 Energy Gun 5 | 2 3 Energy Cannon 4 | . 4 Ballistic Gun . | . . Ballistic Cannon . | . . Launcher . | . . Special Weapon . | . . Impact Weapon . | . . Slashing Weapon . | . . Piercing Weapon . | . . Special Melee Weapon . | . . Unidentified Prototypes . | . . Parts Lost 4 | . 4 Power 1 | . 1 Propulsion 1 | . 1 Utility . | . . Weapon 2 | . 2 Highest Loss Streak 1 | . 1 To Critical Strikes . | . . Average Backups 10 | 1 10 Power . | . . Propulsion 3 | . 4 Utility 3 | . 3 Weapon 2 | . 2 Tool/Special . | . . Unused Backups 12 | . 12 Power . | . . Propulsion 4 | . 4 Utility 5 | . 5 Weapon 3 | . 3 Tool/Special . | . . Average Slot Usage (%) 95 | . 95 Engine 13 | . 13 Treads 26 | . 26 Storage 14 | . 14 Hackware 12 | . 12 Energy Gun 4 | . 4 Energy Cannon 22 | . 22 Peak Build Rating 13 | 6 13 Average Rating 11 | 5 11 On Entrance 3 | . 6 Avg Prop Armor Cover (%) . | . . Naked Turns . | . . Heaviest Build 53 | 12 53 Greatest Support 40 | 40 40 Greatest Overweight (x) 1 | . 1 Average Overweight (x) . | . . Largest Inventory Capacity 20 | 8 20 Average Capacity 15 | 7 16 Most Carried 15 | 2 15 Average Carried 10 | 1 10 Final Capacity 20 | 8 20 Final Carried 14 | 2 14 Class Distribution -------------------- 100% | Mutant Dominant Class ---------------- Mutant | -10/Materials Resources | -11 -10 ----------- Run | Yrd Mat Matter Collected 436 | 224 212 Remotely . | . . Salvage Created 847 | . 847 Parts 47 | . 47 Haulers Intercepted 1 | . 1 Recyclers Shooed . | . . Parts Field Recycled . | . . Retrieved Matter . | . . Parts Self-Destructed . | . . Prevented . | . . Parts Restored . | . . Kills | -11 -10 ------- Run | Yrd Mat Combat Hostiles Destroyed 21 | . 21 Guns 4 | . 4 Cannons 16 | . 16 Classes Destroyed 6 | . 6 Hauler 1 | . 1 Recycler 1 | . 1 Operator 1 | . 1 Watcher 1 | . 1 Swarmer 6 | . 6 Grunt 15 | . 15 Best Kill Streak 6 | . 6 Combat Bots Only 5 | . 5 Max Kills in Single Turn 1 | . 1 Gunslinging . | . . Exploded . | . . Melee . | . . Uniques/NPCs Destroyed . | . . Combat | -11 -10 -------- Run | Yrd Mat Hostile Shots Fired 141 | . 141 Missed 34 | . 34 Hits 107 | . 107 Projectile 107 | . 107 Damage Taken 1177 | . 1177 Core 256 | . 256 Absorbed by Shields . | . . Regen/Repaired (Parts) 114 | . 114 Core Remaining (%) 100 | 100 . Volleys Fired 83 | . 83 Largest 2 | . 2 Hottest 136 | . 136 Shots Fired 137 | . 137 Gun 35 | . 35 Cannon 102 | . 102 Launcher . | . . Special . | . . Kinetic . | . . Thermal 126 | . 126 Explosive . | . . Electromagnetic 11 | . 11 Robot Hit Streak 7 | . 7 Robot Miss Streak 5 | . 5 Penetration Max . | . . Secondary Targets 1 | . 1 Max Gunslinging Chain 1 | . 1 Shots Hit Robots 73 | . 73 Core Hits 30 | . 30 Critical Kills . | . . Critical Parts Destroyed . | . . Critical Strikes 3 | . 3 Burn 3 | . 3 Melee Attacks . | . . Impact . | . . Slashing . | . . Piercing . | . . Sneak Attacks . | . . Combat Hostiles . | . . Follow-up Attacks . | . . Damage Inflicted 1470 | . 1470 Guns 383 | . 383 Cannons 1087 | . 1087 Explosions . | . . Melee . | . . Ramming . | . . Kinetic . | . . Thermal 1361 | . 1361 Explosive . | . . Electromagnetic 109 | . 109 Impact . | . . Slashing . | . . Piercing . | . . Highest Corruption . | . . Average Corruption . | . . Corruption Purged . | . . Corruption Blocked . | . . Overload Shots . | . . Overflow Damage 7 | . 7 Projectiles 7 | . 7 Explosions . | . . Melee . | . . Knockbacks . | . . Impact . | . . Kinetic . | . . Secondary . | . . Self-Inflicted Damage . | . . Shots . | . . Rammed . | . . Targets Rammed . | . . Kicked . | . . Crushed . | . . Highest Temperature 480 | . 480 Average Temperature 212 | . 212 Received Heat Transfer 501 | . 501 Effects 18 | . 18 Shutdowns 3 | . 3 Energy Bleed 2 | . 2 Interference 6 | . 6 Matter Decay 1 | . 1 Short Circuit 2 | . 2 Damage (minor) 4 | . 4 Siege Activations . | . . Martial Activations . | . . Shielding Activations . | . . Robots Disrupted . | . . Combat Hostiles . | . . Robots Corrupted . | . . Combat Hostiles . | . . Parts Fried 1 | . 1 Impact Corruptions . | . . Robots Melted 1 | . 1 Combat Hostiles 1 | . 1 Parts Melted 7 | . 7 Heat Transferred 2874 | . 2874 Parts Sabotaged . | . . Parts Stolen . | . . Parts Stripped . | . . Power Chain Reactions . | . . Alert | -11 -10 ------- Run | Yrd Mat Maximum Alert Level . | . . Low Security (%) 100 | 100 100 Level 1 . | . . Level 2 . | . . Level 3 . | . . Level 4 . | . . Level 5 . | . . High Security . | . . Max Security . | . . Peak Influence 155 | . 155 Initial . | . . Average 61 | . 64 Influence Increases 575 | . 575 Destroy 0b10 Robot/C 420 | . 420 Destroy 0b10 Robot/NC 20 | . 20 Destroy Leader 94 | . 94 Successful Hack 8 | . 8 Disable Machine 15 | . 15 Destroy Structure 3 | . 3 Lose Combat Pursuer 15 | . 15 Influence Decreases 518 | . 518 Time Decay 484 | . 484 Lost Part 34 | . 34 Squads Dispatched 4 | . 4 Investigation 3 | . 3 Extermination . | . . Reinforcement 1 | . 1 Assault . | . . Garrison . | . . Intercept . | . . Searches Triggered . | . . Construction Impeded . | . . Haulers Reinforced . | . . Active Scanning Responses . | . . Cargo Convoy Interrupts . | . . Stealth | -11 -10 --------- Run | Yrd Mat Distress Signals . | . . Communications Jammed . | . . Distress Signals . | . . Times Spotted 27 | . 27 Peak Tracking Total 3 | . 3 Tactical Retreats 1 | . 1 Traps | -11 -10 ------- Run | Yrd Mat Traps Triggered 3 | . 3 Indirectly . | . . Trap Hack Attempts . | . . Triggered . | . . Disarmed . | . . Reprogrammed . | . . Reused . | . . Traps Extracted . | . . Installed . | . . Triggered . | . . Machines | -11 -10 ---------- Run | Yrd Mat Machines Disabled 1 | . 1 Max in Single Turn 1 | . 1 Machines Repaired . | . . Machines Dismantled . | . . Machines Sabotaged . | . . Overloaded Fab Kills . | . . Hacking | -11 -10 --------- Run | Yrd Mat Machines Accessed 4 | . 4 Terminals 3 | . 3 Fabricators . | . . Repair Stations 1 | . 1 Recycling Units . | . . Scanalyzers . | . . Garrison Access . | . . Total Hacks 7 | . 7 Successful 5 | . 5 Failed 2 | . 2 Catastrophic . | . . Database Lockouts . | . . Manual 5 | . 5 Terminals 5 | . 5 Fabricators . | . . Repair Stations 2 | . 2 Recycling Units . | . . Scanalyzers . | . . Garrison Access . | . . Terminal Hacks . | . . Fabricator Hacks . | . . Repair Station Hacks 2 | . 2 Scan Component 1 | . 1 Repair 1 | . 1 Recycling Unit Hacks . | . . Scanalyzer . | . . Garrison Access Hacks . | . . Unauthorized Hacks 3 | . 3 Terminals 3 | . 3 Botnet 3 | . 3 Fabricators . | . . Repair Stations . | . . Recycling Units . | . . Scanalyzers . | . . Garrison Access . | . . Data Cores Recovered . | . . Used . | . . Hacking Detections 2 | . 2 Full Trace Events . | . . Feedback Events . | . . Feedback Blocked . | . . Robot Schematics Acquired . | . . Robots Built . | . . Authchips . | . . Time . | . . Total Robot Build Rating . | . . Part Schematics Acquired . | . . Parts Built . | . . Authchips . | . . Time . | . . Total Part Build Rating . | . . Part Studies Acquired . | . . Parts Repaired 1 | . 1 Time 26 | . 26 Parts Recycled . | . . Recycled Matter . | . . Retrieved Matter . | . . Retrieved Components . | . . Parts Scanalyzed . | . . Part Schematics Acquired . | . . Parts Damaged . | . . Bothacking | -11 -10 ------------ Run | Yrd Mat Used RIF Installer . | . . Robots Hacked . | . . Non-combat . | . . Combat . | . . Robot Hacks Applied . | . . Relay Couplers Released . | . . Fabnet Peak Effective % . | . . Robots Rewired . | . . Allies Hacked . | . . Hacks Repelled . | . . Allies | -11 -10 -------- Run | Yrd Mat Total Allies . | . . Largest Group . | . . Highest-Rated Group . | . . Highest-Rated Ally . | . . Total Orders . | . . Ally Attacks . | . . Total Damage . | . . Kills . | . . Allies Corrupted . | . . Allies Melted . | . . Intel | -11 -10 ------- Run | Yrd Mat Active Infowar (turns) . | . . Robot Analysis Total . | . . Derelict Logs Recovered . | . . Drone Launches . | . . Drone Recoveries . | . . Exploration | -11 -10 ------------- Run | Yrd Mat Turns Passed 1699 | 84 1615 Spaces Moved 747 | 48 699 Core 2 | 2 . Treads 745 | 46 699 Legs . | . . Wheels . | . . Hover . | . . Flight . | . . Fastest Speed 50 | 50 160 Average Speed 179 | 155 181 Slowest Speed 240 | 160 240 Overloaded Moves . | . . Propulsion Burnouts . | . . Robots Hopped . | . . Potential Cave-ins . | . . Cave-ins Triggered . | . . Exploration Rate (%) 38 | 3 74 Regions Visited 1 Branch Regions . Pre-discovered Areas . | . . Known Exits Taken . | . . Unknown Exits Taken 1 | 1 . Scrap Searched . | . . Spaces Dug . | . . Terrain Destroyed . | . . Melee . | . . Projectile . | . . AOE . | . . Terrain Rammed . | . . Walls Destroyed . | . . Machines Disabled . | . . Actions | -11 -10 --------- Run | Yrd Mat Total 962 | 55 907 Wait 85 | . 85 Move 746 | 47 699 Hop . | . . Pick Up 19 | 2 17 Fast Attach 10 | 6 4 Attach 5 | . 5 Detach . | . . Swap 8 | . 8 Drop 6 | . 6 Fire 83 | . 83 Melee . | . . Ram . | . . Kick . | . . Crush . | . . Escape Stasis . | . . Rewire . | . . Trap . | . . Miscellaneous . | . . Route ------- -11/Scrapyard -10/Materials (discovered 4 exits: [*Mat x3] / [*Sub]) History --------- Turn | Location | Event 14 | -11/Scrapyard | Discovered new exit (range 16) 85 | -11/Scrapyard | Entered Materials 203 | -10/Materials | Discovered new exit (range 9) 312 | -10/Materials | Build established: Mutant 601 | -10/Materials | Discovered new exit (range 5) 735 | -10/Materials | Repaired Lgt. Treads 830 | -10/Materials | Discovered new exit (range 16) 904 | -10/Materials | Discovered new exit (range 16) 987 | -10/Materials | Core integrity fell below 50% 1583 | -10/Materials | Core integrity fell below 20% 1700 | -10/Materials | Destroyed by G-34 Mercenary with Small Laser Last Messages --------------- 01592_ K-01 Serf collects debris. 01594_ G-34 Mercenary suffers critical hit (Burn). 01594_ G-34 Mercenary critical meltdown. 01595_ Overheating: Matter decay (-43). 01595_ K-01 Serf collects debris. 01598_ Acquired 46 matter. 01606_ R-06 Scavenger collects Lgt. Nuclear Core. 01610_ R-06 Scavenger collects Particle Gun. 01614_ R-06 Scavenger collects Aluminum Leg. 01670_ Triggered Alarm Trap. 01670_ An alarm sounds. 01670_ ALERT: Alarm triggered, dispatching investigation squad. 01691_ G-34 Mercenary suffers critical hit (Burn). 01695_ G-34 Mercenary heat spikes uncontrollably. 01696_ G-34 Mercenary overheating. 01697_ G-34 Mercenary heat spikes uncontrollably. 01697_ Melted Aluminum Leg. 01697_ Sml. Laser melted. 01697_ Heat Sink melted. 01697_ G-34 Mercenary destroyed. Map ----- +----------------------------------------------------+ | | | | | | | | | | | | | | | | | | | | | | | | | ???#############?????????????????????????????????? | | ???# ########??????????????????????????? | | ???? # #??????????????????????????? | | ???? #!=! *#??????????????????????????? | | ???# """ """ #!=! #####??????????????????????? | | ???# """ """ #=!! # #??????????????????????? | | ???# """ """ # #^< #??????????????????????? | | ???# # # #??????????????????????? | | ???#######+########+### #####+####+###?????????? | | ????????# ????????? | | ######### u % ????????? | | g% ""???????????? | | ############# #########g####### ""???????????? | | +=%] #???# #???# %@ #????????????????????? | | #* #???# #???# #????????????????????? | | #* #???# #???# """ #????????????????????? | | ####+####???# #???# """""#??????????????? ???? | | #??# #??????# #???# """""#??????????????? ??? | | #### ######## #???# """""#?????????????? #?? | | #???# """ #????????????T"" ??? | | #???# ??? ??????????????"" ??? | | ##+##### """ #???# ??????????????????? ??? | | # """ #???###???????????????????? ??? | | """ # """ #??????????????????????????# #??? | | """ + #??????????????????????????# #??? | | ! """ # #??????????????????????????+ #??? | | #% #??????????????????????????# #??? | | """ # !!! #??????????????????????????# #??? | | """ # %!!! #??????????????????????????# #??? | | """ # !! #??????????????????????????# #??? | | # % #??????????????????????????# #??? | | #+###### #????????#######???????????# #??? | | # ###### ########## / ############# #??? | | # % % % #??? | | + " % #### | | # % | | # ###+########+######## ############# | | # =# ## #??#######???????????# | +----------------------------------------------------+ Best States ------------- Heat Dissipation 25 Energy Generation 10 Energy Capacity 250 Matter Stores 300 Matter Capacity 300 Sight Range 16 Terrain Scan Density 10 Evasion (%) 40 Recoil Reduction 2 Offensive Hacking 10 Item Schematics ----------------- None Robot Schematics ------------------ None Fabricated ------------ Nothing Repaired ---------- Lgt. Treads | 18% | -10/Materials Studied --------- None Alien Tech Used ----------------- None Achievements -------------- None Challenges ------------ None Game ------ Seed MediumCompactPropulsion Manual? 0 Play Time 00:11:07 Cumulative 77.3 hours Start 2026.06.27 @ 23:13:40 End 2026.06.27 @ 23:22:40 Sessions 1 Manual Loads 0 Difficulty Rogue Special Mode None Game No. 129 Rogue 129 Adventurer 0 Explorer 0 Win Type - Total 0 Types 0/0/0/0/0/0/0/0/0/0 Lore% 21 Gallery% 31 Achievement% 27 Wizard Run 0 Options --------- Layout 0 ASCII 0 Keyboard 0 Movement Mouse Keybinds 0 Fullscreen 1 Font 24/Smallcaps Map View 38x25 Zoom Use 100% Tactical HUD 1 Map Filters NONE Filters NONE Steam 1 RUN: fd4d90d3-aa08-4c2c-85a0-b424d6cf8852